[Event "Titled Tuesday Blitz January 18 2022"]
[White "Zhigalko, Sergei"]
[Black "Petrovskyi, Vadym"]
[WhiteFideId "13502956"]
[BlackFideId "14165210"]
[WhiteElo "2662"]
[BlackElo "2424"]
[Result "1-0"]
[Round "11"]
[TimeControl "180+1"]
[Date "2022.01.18"]
[WhiteClock "0:00:08"]
[BlackClock "0:00:07"]

1. e4 {[%clk 0:03:00]}  c5 {[%clk 0:02:59]} 2. Nf3 {[%clk 0:03:00]}  d6 {[%clk 0:02:59]} 3. d4 {[%clk 0:03:01]}  cxd4 {[%clk 0:03:00]} 4. Qxd4 {[%clk 0:03:01]}  Nc6 {[%clk 0:02:59]} 5. Bb5 {[%clk 0:03:01]}  Bd7 {[%clk 0:02:59]} 6. Bxc6 {[%clk 0:03:02]}  Bxc6 {[%clk 0:03:00]} 7. Nc3 {[%clk 0:03:03]}  Nf6 {[%clk 0:03:01]} 8. Bg5 {[%clk 0:03:03]}  e6 {[%clk 0:03:01]} 9. O-O-O {[%clk 0:03:03]}  Be7 {[%clk 0:03:02]} 10. Rhe1 {[%clk 0:03:04]}  O-O {[%clk 0:03:02]} 11. Kb1 {[%clk 0:03:03]}  Rc8 {[%clk 0:03:01]} 12. Qd3 {[%clk 0:02:57]}  Qa5 {[%clk 0:03:00]} 13. h4 {[%clk 0:02:52]}  b5 {[%clk 0:02:58]} 14. Nd4 {[%clk 0:02:30]}  b4 {[%clk 0:02:57]} 15. Nxc6 {[%clk 0:02:29]}  Rxc6 {[%clk 0:02:58]} 16. Ne2 {[%clk 0:02:28]}  Rfc8 {[%clk 0:02:38]} 17. Rd2 {[%clk 0:02:28]}  h6 {[%clk 0:02:32]} 18. Bf4 {[%clk 0:02:19]}  e5 {[%clk 0:02:26]} 19. Be3 {[%clk 0:02:11]}  Nd7 {[%clk 0:02:06]} 20. g3 {[%clk 0:01:59]}  Nb6 {[%clk 0:01:45]} 21. Bxb6 {[%clk 0:01:52]}  Qxb6 {[%clk 0:01:45]} 22. Nc1 {[%clk 0:01:52]}  a5 {[%clk 0:01:44]} 23. Qe3 {[%clk 0:01:50]}  Qa6 {[%clk 0:01:35]} 24. Qe2 {[%clk 0:01:40]}  Qb6 {[%clk 0:01:34]} 25. Qe3 {[%clk 0:01:32]}  Qa6 {[%clk 0:01:33]} 26. Nd3 {[%clk 0:01:23]}  Qb5 {[%clk 0:01:27]} 27. Qe2 {[%clk 0:01:18]}  Qb7 {[%clk 0:01:21]} 28. b3 {[%clk 0:00:56]}  a4 {[%clk 0:01:20]} 29. Nb2 {[%clk 0:00:57]}  axb3 {[%clk 0:01:18]} 30. cxb3 {[%clk 0:00:55]}  Rc3 {[%clk 0:01:05]} 31. Na4 {[%clk 0:00:51]}  R3c6 {[%clk 0:01:03]} 32. Qd3 {[%clk 0:00:48]}  Qc7 {[%clk 0:00:59]} 33. Qf1 {[%clk 0:00:29]}  Rc2 {[%clk 0:00:46]} 34. Red1 {[%clk 0:00:30]}  g5 {[%clk 0:00:44]} 35. Nb2 {[%clk 0:00:20]}  Qc3 {[%clk 0:00:34]} 36. Rxc2 {[%clk 0:00:05]}  Qxc2+ {[%clk 0:00:34]} 37. Ka1 {[%clk 0:00:06]}  gxh4 {[%clk 0:00:31]} 38. Nc4 {[%clk 0:00:02]}  Ra8 {[%clk 0:00:28]} 39. Nb2 {[%clk 0:00:02]}  hxg3 {[%clk 0:00:26]} 40. fxg3 {[%clk 0:00:03]}  Bg5 {[%clk 0:00:26]} 41. Qd3 {[%clk 0:00:02]}  Qc3 {[%clk 0:00:16]} 42. Kb1 {[%clk 0:00:01]}  Rc8 {[%clk 0:00:15]} 43. Qxc3 {[%clk 0:00:02]}  bxc3 {[%clk 0:00:16]} 44. Nc4 {[%clk 0:00:02]}  Rd8 {[%clk 0:00:09]} 45. Kc2 {[%clk 0:00:02]}  f5 {[%clk 0:00:10]} 46. exf5 {[%clk 0:00:02]}  d5 {[%clk 0:00:10]} 47. Nxe5 {[%clk 0:00:02]}  Kg7 {[%clk 0:00:09]} 48. Nc6 {[%clk 0:00:02]}  Rd6 {[%clk 0:00:09]} 49. Nd4 {[%clk 0:00:02]}  Bd2 {[%clk 0:00:07]} 50. Nf3 {[%clk 0:00:02]}  Be3 {[%clk 0:00:06]} 51. Kxc3 {[%clk 0:00:02]}  Kf6 {[%clk 0:00:06]} 52. g4 {[%clk 0:00:02]}  Rc6+ {[%clk 0:00:06]} 53. Kd3 {[%clk 0:00:02]}  Bf4 {[%clk 0:00:06]} 54. Re1 {[%clk 0:00:02]}  Kg7 {[%clk 0:00:04]} 55. Re6 {[%clk 0:00:01]}  Rc1 {[%clk 0:00:05]} 56. Re7+ {[%clk 0:00:02]}  Kf6 {[%clk 0:00:05]} 57. Re6+ {[%clk 0:00:02]}  Kg7 {[%clk 0:00:06]} 58. Ke2 {[%clk 0:00:02]}  Rc2+ {[%clk 0:00:06]} 59. Kd3 {[%clk 0:00:03]}  Rxa2 {[%clk 0:00:06]} 60. Rg6+ {[%clk 0:00:03]}  Kh7 {[%clk 0:00:06]} 61. Re6 {[%clk 0:00:02]}  Rb2 {[%clk 0:00:06]} 62. Re7+ {[%clk 0:00:03]}  Kg8 {[%clk 0:00:06]} 63. Nd4 {[%clk 0:00:04]}  Rb1 {[%clk 0:00:05]} 64. Ne6 {[%clk 0:00:04]}  Bg3 {[%clk 0:00:03]} 65. Rg7+ {[%clk 0:00:04]}  Kh8 {[%clk 0:00:03]} 66. Rg6 {[%clk 0:00:04]}  Rxb3+ {[%clk 0:00:03]} 67. Kc2 {[%clk 0:00:04]}  Rb4 {[%clk 0:00:03]} 68. Rxh6+ {[%clk 0:00:05]}  Kg8 {[%clk 0:00:04]} 69. Rg6+ {[%clk 0:00:06]}  Kf7 {[%clk 0:00:04]} 70. Ng5+ {[%clk 0:00:06]}  Ke7 {[%clk 0:00:04]} 71. Nf3 {[%clk 0:00:06]}  Bf2 {[%clk 0:00:02]} 72. Re6+ {[%clk 0:00:06]}  Kf7 {[%clk 0:00:02]} 73. Ne5+ {[%clk 0:00:06]}  Kg7 {[%clk 0:00:03]} 74. g5 {[%clk 0:00:06]}  d4 {[%clk 0:00:03]} 75. f6+ {[%clk 0:00:06]}  Kf8 {[%clk 0:00:03]} 76. g6 {[%clk 0:00:06]}  Rb7 {[%clk 0:00:04]} 77. g7+ {[%clk 0:00:06]}  Rxg7 {[%clk 0:00:04]} 78. fxg7+ {[%clk 0:00:07]}  Kxg7 {[%clk 0:00:05]} 79. Rg6+ {[%clk 0:00:07]}  Kh7 {[%clk 0:00:05]} 80. Re6 {[%clk 0:00:07]}  Kg7 {[%clk 0:00:05]} 81. Nf3 {[%clk 0:00:07]}  Kf7 {[%clk 0:00:05]} 82. Re4 {[%clk 0:00:07]}  Kf6 {[%clk 0:00:05]} 83. Nxd4 {[%clk 0:00:08]}  Bg1 {[%clk 0:00:06]} 84. Kd3 {[%clk 0:00:08]}  Kf7 {[%clk 0:00:07]} 85. Rf4+ {[%clk 0:00:08]}  Ke7 {[%clk 0:00:07]} 86. Rg4 {[%clk 0:00:09]}  Bh2 {[%clk 0:00:06]} 87. Ke4 {[%clk 0:00:09]}  Kd6 {[%clk 0:00:07]} 88. Rh4 {[%clk 0:00:09]}  Bg3 {[%clk 0:00:07]} 89. Nf5+ {[%clk 0:00:08]} 1-0